fUSD/lending_fUSD_20240712
["ID","MTS","AMOUNT","RATE_DAILY","PERIOD"]
[331800634,1720765952578,-1087.88,0.00014575,2]
[331800635,1720765952587,-924.38,0.00014575,2]
[331800636,1720765952597,-895.76,0.00014575,2]
[331800637,1720765952608,-877.72,0.00014575,2]
[331800638,1720765952618,-811.35,0.00014575,2]
[331800639,1720765952627,-701.46,0.00014575,2]
[331800640,1720765952636,-943.64,0.00014575,2]
[331800641,1720765952646,-535.3,0.00014575,2]
[331800642,1720765952655,-951.0,0.00014575,2]
[331800643,1720765952665,-533.99,0.00014575,2]
[331800644,1720765952675,-500.0,0.00014575,2]
[331800645,1720765952684,-691.79,0.00014575,2]
[331800646,1720765952693,-749.0,0.00014575,2]
[331800647,1720765952703,-1153.39,0.00014575,2]
[331800648,1720765952712,-646.61,0.00014575,2]
[331800649,1720765952722,-828.98,0.00014575,2]
[331800650,1720765952731,-500.0,0.00014575,2]
[331800651,1720765952741,-797.92,0.00014575,2]
[331800652,1720765952753,-678.2,0.00014575,2]
[331800653,1720765952764,-925.55,0.00014575,2]
[331800654,1720765952775,-742.09,0.00014575,2]
[331800655,1720765952784,-718.26,0.00014575,2]
[331800656,1720765952793,-660.22,0.00014575,2]
[331800657,1720765952803,-685.66,0.00014575,2]
[331800658,1720765952815,-616.92,0.00014575,2]
[331800659,1720765952824,-626.69,0.00014575,2]
[331800660,1720765952835,-578.66,0.00014575,2]
[331800661,1720765952844,-1182.27,0.00014575,2]
[331800662,1720765952854,-751.88,0.00014575,2]
[331800663,1720765952864,-788.87,0.00014575,2]
[331800664,1720765952873,-589.96,0.00014575,2]
[331800665,1720765952883,-1518.85,0.00014575,2]
[331800666,1720765952893,-500.0,0.00014575,2]
[331800667,1720765952903,-863.12,0.00014575,2]
[331800668,1720765952913,-500.0,0.00014575,2]
[331800669,1720765952923,-765.3,0.00014575,2]
[331800670,1720765952933,-1173.86,0.00014575,2]
[331800671,1720765952944,-500.0,0.00014575,2]
[331800672,1720765952955,-714.93,0.00014575,2]
[331800673,1720765952965,-500.0,0.00014575,2]
[331800674,1720765952975,-889.91,0.00014575,2]
[331800675,1720765952984,-500.0,0.00014575,2]
[331800676,1720765952995,-797.27,0.00014575,2]
[331800677,1720765953005,-500.0,0.00014575,2]
[331800678,1720765953014,-508.63,0.00014575,2]
[331800679,1720765953024,-500.0,0.00014575,2]
[331800680,1720765953034,-1002.89,0.00014575,2]
[331800681,1720765953044,-512.8,0.00014575,2]
[331800682,1720765953054,-905.0,0.00014575,2]
[331800683,1720765953063,-500.0,0.00014575,2]
[331800684,1720765953072,-500.0,0.00014575,2]
[331800685,1720765953082,-500.0,0.00014575,2]
[331800686,1720765953091,-504.61,0.00014575,2]
[331800687,1720765953100,-500.0,0.00014575,2]
[331800688,1720765953111,-500.0,0.00014575,2]
[331800689,1720765953120,-998.09,0.00014575,2]
[331800690,1720765953130,-1181.8,0.00014575,2]
[331800691,1720765953139,-567.43,0.00014575,2]
[331800692,1720765953149,-1692.88,0.00014575,2]
[331800693,1720765953158,-806.67,0.00014575,2]
[331800694,1720765953168,-1115.55,0.00014575,2]
[331800695,1720765953178,-1111.86,0.00014575,2]
[331800696,1720765953188,-500.0,0.00014575,2]
[331800697,1720765953198,-1152.37,0.00014575,2]
[331800698,1720765953208,-500.0,0.00014575,2]
[331800699,1720765953217,-1099.21,0.00014575,2]
[331800700,1720765953227,-500.0,0.00014575,2]
[331800701,1720765953238,-958.58,0.00014575,2]
[331800702,1720765953248,-1435.54,0.00014575,2]
[331800703,1720765953258,-933.39,0.00014575,2]
[331800704,1720765953268,-885.22,0.00014575,2]
[331800705,1720765953277,-525.55,0.00014575,2]
[331800706,1720765953287,-578.47,0.00014575,2]
[331800707,1720765953297,-585.1,0.00014575,2]
[331800708,1720765953306,-768.43,0.00014575,2]
[331800709,1720765953317,-500.0,0.00014575,2]
[331800710,1720765953326,-1131.03,0.00014575,2]
[331800711,1720765953336,-500.66,0.00014575,2]
[331800712,1720765953346,-1387.16,0.00014575,2]
[331800713,1720765953356,-769.71,0.00014575,2]
[331800714,1720765953366,-929.61,0.00014575,2]
[331800715,1720765953376,-154.19687677,0.00014575,2]
[331800716,1720765953386,-1195.55,0.00014575,2]
[331800717,1720765953396,-1164.92,0.00014575,2]
[331800718,1720765953406,-592.67,0.00014575,2]
[331800719,1720765953415,-832.05,0.00014575,2]
[331800720,1720765953425,-1157.39,0.00014575,2]
[331800721,1720765953435,-965.25,0.00014575,2]
[331800722,1720765953445,-1057.96,0.00014575,2]
[331800723,1720765953454,-500.0,0.00014575,2]
[331800724,1720765953464,-663.73,0.00014575,2]
[331800725,1720765953474,-500.0,0.00014575,2]
[331800726,1720765953483,-996.83,0.00014575,2]
[331800727,1720765953494,-778.42,0.00014575,2]
[331800728,1720765953503,-500.94,0.00014575,2]
[331800729,1720765953513,-500.0,0.00014575,2]
[331800730,1720765953527,-1011.24,0.00014575,2]
[331800731,1720765953536,-724.27,0.00014575,2]
[331800732,1720765953546,-500.0,0.00014575,2]
[331800733,1720765953556,-948.7,0.00014575,2]
[331800734,1720765953566,-1338.17,0.00014575,2]
[331800735,1720765953576,-894.67,0.00014575,2]
[331800736,1720765953586,-500.0,0.00014575,2]
[331800737,1720765953595,-691.16,0.00014575,2]
[331800738,1720765953606,-706.91,0.00014575,2]
[331800739,1720765953616,-1648.59,0.00014575,2]
[331800740,1720765953626,-579.34,0.00014575,2]
[331800741,1720765953636,-534.75,0.00014575,2]
[331800742,1720765953645,-6673.84,0.00014575,2]
[331800743,1720765953655,-791.66,0.00014575,2]
[331800744,1720765953665,-868.6,0.00014575,2]
[331800745,1720765953675,-503.87,0.00014575,2]
[331800746,1720765953684,-500.0,0.00014575,2]
[331800747,1720765953695,-1463.05,0.00014575,2]
[331800748,1720765953706,-500.0,0.00014575,2]
[331800749,1720765953717,-1711.11,0.00014575,2]
[331800750,1720765953726,-940.12,0.00014575,2]
[331800751,1720765953737,-1103.87,0.00014575,2]
[331800752,1720765953748,-838.82,0.00014575,2]
[331800753,1720765953758,-906.68,0.00014575,2]
[331800754,1720765953769,-774.99,0.00014575,2]
[331800755,1720765953779,-500.0,0.00014575,2]
[331800756,1720765953789,-1003.46,0.00014575,2]
[331800757,1720765953799,-776.49,0.00014575,2]
[331800758,1720765953809,-715.19,0.00014575,2]
[331800759,1720765953819,-811.17,0.00014575,2]
[331800760,1720765953829,-500.0,0.00014575,2]
[331800761,1720765953839,-1169.16,0.00014575,2]
[331800762,1720765953849,-2671.99,0.00014575,2]
[331800763,1720765953860,-804.64,0.00014575,2]
[331800764,1720765953870,-516.06,0.00014575,2]
[331800765,1720765953879,-1567.42,0.00014575,2]
[331800766,1720765953889,-1123.97,0.00014575,2]
[331800767,1720765953899,-1159.17,0.00014575,2]
[331800768,1720765953909,-682.47,0.00014575,2]
[331800769,1720765953918,-7796.51,0.00014575,2]
[331800770,1720765953930,-884.1,0.00014575,2]
[331800771,1720765953941,-3427.86,0.00014575,2]
[331800772,1720765953951,-761.42,0.00014575,2]
[331800773,1720765953962,-500.0,0.00014575,2]
[331800774,1720765953972,-500.0,0.00014575,2]
[331800775,1720765953982,-2349.61,0.00014575,2]
[331800776,1720765953994,-2824.19,0.00014575,2]
[331800777,1720765954004,-544.06,0.00014575,2]
[331800778,1720765954014,-989.56134032,0.00014575,2]
[331800779,1720765954625,-423.57865968,0.00014575,2]
[331800780,1720765954635,-500.0,0.00014575,2]
[331800781,1720765954645,-746.16,0.00014575,2]
[331800782,1720765954655,-568.05,0.00014575,2]
[331800783,1720765954665,-1225.06,0.00014575,2]
[331800784,1720765954677,-1040.64,0.00014575,2]
[331800785,1720765954686,-319.43182754,0.00014575,2]
[331800786,1720765954697,-502.01,0.00014575,2]
[331800787,1720765954707,-945.48,0.00014575,2]
[331800788,1720765954718,-1864.03,0.00014575,2]
[331800789,1720765954729,-500.0,0.00014575,2]
[331800790,1720765954740,-3139.48,0.00014575,2]
[331800791,1720765954751,-782.62,0.00014575,2]
[331800792,1720765954762,-967.92,0.00014575,2]
[331800793,1720765954772,-817.59,0.00014575,2]
[331800794,1720765954783,-760.77,0.00014575,2]
[331800795,1720765954793,-672.02,0.00014575,2]
[331800796,1720765954803,-500.0,0.00014575,2]
[331800797,1720765954813,-1369.87,0.00014575,2]
[331800798,1720765954823,-503.52,0.00014575,2]
[331800799,1720765954833,-927.94,0.00014575,2]
[331800800,1720765954843,-510.11,0.00014575,2]
[331800801,1720765954853,-883.29,0.00014575,2]
[331800802,1720765954863,-215.1857899,0.00014575,2]
[331800803,1720765954873,-703.12,0.00014575,2]
[331800804,1720765954884,-913.43,0.00014575,2]
[331800805,1720765954894,-1249.82,0.00014575,2]
[331800806,1720765954904,-500.0,0.00014575,2]
[331800807,1720765954914,-698.85,0.00014575,2]
[331800808,1720765954925,-210.17414158,0.00014575,2]
[331800809,1720765954935,-513.61,0.00014575,2]
[331800810,1720765954946,-3390.01,0.00014575,2]
[331800811,1720765954956,-977.7,0.00014575,2]
[331800812,1720765954967,-522.91,0.00014575,2]
[331800813,1720765954977,-641.99,0.00014575,2]
[331800814,1720765955243,-760.44,0.00014575,2]
[331800815,1720765955255,-853.13,0.00014575,2]
[331800816,1720765955265,-534.54,0.00014575,2]
[331800817,1720765955275,-152.0,0.00014591,3]
[331800818,1720765955285,-500.0,0.0001463,2]
[331800819,1720765955294,-500.0,0.0001463,2]
[331800820,1720765955305,-500.0,0.0001463,2]
[331800821,1720765955315,-500.0,0.0001463,2]
[331800822,1720765955326,-500.0,0.0001463,2]
[331800823,1720765955336,-600.13,0.0001463,2]
[331800824,1720765955345,-280.29,0.0001463,2]
[331800825,1720765955355,-533.46,0.0001463,2]
[331800826,1720765955366,-547.29,0.0001463,2]
[331800827,1720765955375,-527.94,0.0001463,2]
[331800828,1720765955386,-500.0,0.0001463,2]
[331800829,1720765955396,-829.62,0.0001463,2]
[331800830,1720765955406,-678.42,0.0001463,2]
[331800831,1720765955416,-500.0,0.0001463,2]
[331800832,1720765955426,-500.0,0.0001463,2]
[331800833,1720765955438,-1078.13,0.0001463,2]
[331800834,1720765955448,-599.97,0.0001463,2]
[331800835,1720765955458,-572.91,0.0001463,2]
[331800836,1720765955468,-541.87,0.0001463,2]
[331800837,1720765955477,-561.01,0.0001463,2]
[331800838,1720765955487,-526.37,0.0001463,2]
[331800839,1720765955498,-658.35,0.0001463,2]
[331800840,1720765955508,-597.81,0.0001463,2]
[331800841,1720765955520,-665.34,0.0001463,2]
[331800842,1720765955530,-879.54,0.0001463,2]
[331800843,1720765955540,-1042.83,0.0001463,2]
[331800844,1720765955550,-500.0,0.0001463,2]
[331800845,1720765955561,-631.93185847,0.0001463,2]
[331800846,1720765955572,-801.96,0.0001463,2]
[331800847,1720765955582,-676.83,0.0001463,2]
[331800848,1720765955594,-576.46,0.0001463,2]
[331800849,1720765955604,-679.71,0.0001463,2]
[331800850,1720765955614,-699.82,0.0001463,2]
[331800851,1720765955623,-902.64,0.0001463,2]
[331800852,1720765955634,-500.0,0.0001463,2]
[331800853,1720765955644,-969.66,0.0001463,2]
[331800854,1720765955654,-1386.9,0.0001463,2]
[331800855,1720765955664,-832.86,0.0001463,2]
[331800856,1720765955674,-1142.56,0.0001463,2]
[331800857,1720765955684,-584.03,0.0001463,2]
[331800858,1720765955694,-678.02,0.0001463,2]
[331800859,1720765955704,-965.58,0.0001463,2]
[331800860,1720765955713,-980.86,0.0001463,2]
[331800861,1720765955723,-500.0,0.0001463,2]
[331800862,1720765955732,-500.0,0.0001463,2]
[331800863,1720765955743,-625.22,0.0001463,2]
[331800864,1720765955752,-1043.71,0.0001463,2]
[331800865,1720765955762,-500.0,0.0001463,2]
[331800866,1720765955773,-1095.96,0.0001463,2]
[331800867,1720765955784,-663.07,0.0001463,2]
[331800868,1720765955794,-1311.76,0.0001463,2]
[331800869,1720765955804,-500.0,0.0001463,2]
[331800870,1720765955814,-1064.74,0.0001463,2]
[331800871,1720765955824,-500.0,0.0001463,2]
[331800872,1720765955833,-500.0,0.0001463,2]
[331800873,1720765955844,-1453.03,0.0001463,2]
[331800874,1720765955854,-506.91,0.0001463,2]
[331800875,1720765955865,-625.46,0.0001463,2]
[331800876,1720765955876,-651.67,0.0001463,2]
[331800877,1720765955885,-1301.15,0.0001463,2]
[331800878,1720765955896,-618.62,0.0001463,2]
[331800879,1720765955906,-1182.83,0.0001463,2]
[331800880,1720765955917,-500.0,0.0001463,2]
[331800881,1720765955927,-871.11,0.0001463,2]
[331800882,1720765955938,-886.56,0.0001463,2]
[331800883,1720765955949,-500.0,0.0001463,2]
[331800884,1720765955960,-1085.4,0.0001463,2]
[331800885,1720765955971,-896.6,0.0001463,2]
[331800886,1720765955981,-830.96,0.0001463,2]
[331800887,1720765955991,-674.06,0.0001463,2]
[331800888,1720765956000,-1895.01,0.0001463,2]
[331800889,1720765956010,-1172.9,0.0001463,2]
[331800890,1720765956020,-1660.92,0.0001463,2]
[331800891,1720765956031,-644.5,0.0001463,2]
[331800892,1720765956041,-1467.31,0.0001463,2]
[331800893,1720765956051,-981.49,0.0001463,2]
[331800894,1720765956061,-521.29665304,0.0001463,2]
[331800895,1720765956072,-1112.45,0.0001463,2]
[331800896,1720765956082,-721.53,0.0001463,2]
[331800897,1720765956093,-773.09,0.0001463,2]
[331800898,1720765956103,-750.22,0.0001463,2]
[331800899,1720765956113,-617.12,0.0001463,2]
[331800900,1720765956123,-1485.55,0.0001463,2]
[331800901,1720765956134,-645.73,0.0001463,2]
[331800902,1720765956145,-609.33,0.0001463,2]
[331800903,1720765956155,-1043.11,0.0001463,2]
[331800904,1720765956165,-577.94,0.0001463,2]
[331800905,1720765956174,-1001.09,0.0001463,2]
[331800906,1720765956184,-572.94,0.0001463,2]
[331800907,1720765956194,-826.26,0.0001463,2]
[331800908,1720765956204,-863.68,0.0001463,2]
[331800909,1720765956214,-978.71,0.0001463,2]
[331800910,1720765956224,-927.14,0.0001463,2]
[331800911,1720765956234,-1033.49,0.0001463,2]
[331800912,1720765956244,-584.99,0.0001463,2]
[331800913,1720765956254,-924.22,0.0001463,2]
[331800914,1720765956264,-936.64,0.0001463,2]
[331800915,1720765956274,-1551.06,0.0001463,2]
[331800916,1720765956284,-500.0,0.0001463,2]
[331800917,1720765956294,-1266.54,0.0001463,2]
[331800918,1720765956303,-583.16,0.0001463,2]
[331800919,1720765956313,-1145.72,0.0001463,2]
[331800920,1720765956323,-628.89,0.0001463,2]
[331800921,1720765956332,-1072.75,0.0001463,2]
[331800922,1720765956342,-882.64,0.0001463,2]
[331800923,1720765956352,-908.15,0.0001463,2]
[331800924,1720765956362,-617.45,0.0001463,2]
[331800925,1720765956372,-500.0,0.0001463,2]
[331800926,1720765956381,-597.8,0.0001463,2]
[331800927,1720765956392,-1413.12,0.0001463,2]
[331800928,1720765956402,-684.65,0.0001463,2]
[331800929,1720765956412,-1269.4,0.0001463,2]
[331800930,1720765956422,-1009.57,0.0001463,2]
[331800931,1720765956432,-820.34,0.0001463,2]
[331800932,1720765956442,-570.33,0.0001463,2]
[331800933,1720765956452,-751.75,0.0001463,2]
[331800934,1720765956462,-1287.67,0.0001463,2]
[331800935,1720765956472,-922.77,0.0001463,2]
[331800936,1720765956482,-1345.39,0.0001463,2]
[331800937,1720765956493,-649.45,0.0001463,2]
[331800938,1720765956503,-500.0,0.0001463,2]
[331800939,1720765956512,-536.18,0.0001463,2]
[331800940,1720765956526,-895.96,0.0001463,2]
[331800941,1720765956537,-566.55,0.0001463,2]
[331800942,1720765956548,-729.38,0.0001463,2]
[331800943,1720765956559,-229.08339047,0.0001463,2]
[331800944,1720765956570,-1632.41,0.0001463,2]
[331800945,1720765956580,-1661.47,0.0001463,2]
[331800946,1720765956591,-1622.68,0.0001463,2]
[331800947,1720765956603,-1461.03,0.0001463,2]
[331800948,1720765956614,-600.18,0.0001463,2]
[331800949,1720765956626,-932.1,0.0001463,2]
[331800950,1720765956637,-652.76,0.0001463,2]
[331800951,1720765956648,-590.79,0.0001463,2]
[331800952,1720765956657,-649.76,0.0001463,2]
[331800953,1720765956666,-562.94,0.0001463,2]
[331800954,1720765956675,-500.0,0.0001463,2]
[331800955,1720765956685,-511.55,0.0001463,2]
[331800956,1720765956695,-682.84,0.0001463,2]
[331800957,1720765956704,-500.0,0.0001463,2]
[331800958,1720765956713,-913.11,0.0001463,2]
[331800959,1720765956723,-288.92940329,0.0001463,2]
[331800960,1720765956732,-557.92,0.0001463,2]
[331800961,1720765956743,-500.0,0.0001463,2]
[331800962,1720765956752,-665.1,0.0001463,2]
[331800963,1720765956762,-647.57,0.0001463,2]
[331800964,1720765956772,-655.14,0.0001463,2]
[331800965,1720765956781,-1070.59,0.0001463,2]
[331800966,1720765956792,-549.77,0.0001463,2]
[331800967,1720765956802,-955.34,0.0001463,2]
[331800968,1720765956811,-572.55,0.0001463,2]
[331800969,1720765956820,-1087.88,0.0001463,2]
[331800970,1720765956829,-924.38,0.0001463,2]
[331800971,1720765956838,-895.76,0.0001463,2]
[331800972,1720765956848,-877.72,0.0001463,2]
[331800973,1720765956858,-811.35,0.0001463,2]
[331800974,1720765956868,-701.46,0.0001463,2]
[331800975,1720765956877,-943.64,0.0001463,2]
[331800976,1720765956887,-535.3,0.0001463,2]
[331800977,1720765956896,-533.99,0.0001463,2]
[331800978,1720765956907,-951.0,0.0001463,2]
[331800979,1720765956917,-500.0,0.0001463,2]
[331800980,1720765956927,-691.79,0.0001463,2]
[331800981,1720765956937,-749.0,0.0001463,2]
[331800982,1720765956946,-1153.39,0.0001463,2]
[331800983,1720765956956,-646.61,0.0001463,2]
[331800984,1720765956966,-828.98,0.0001463,2]
[331800985,1720765956976,-500.0,0.0001463,2]
[331800986,1720765956986,-797.92,0.0001463,2]
[331800987,1720765956997,-678.2,0.0001463,2]
[331800988,1720765957007,-925.55,0.0001463,2]
[331800989,1720765957016,-742.09,0.0001463,2]
[331800990,1720765957026,-718.26,0.0001463,2]
[331800991,1720765957035,-660.22,0.0001463,2]
[331800992,1720765957044,-685.66,0.0001463,2]
[331800993,1720765957054,-616.92,0.0001463,2]
[331800994,1720765957064,-626.69,0.0001463,2]
[331800995,1720765957074,-578.66,0.0001463,2]
[331800996,1720765957084,-1182.27,0.0001463,2]
[331800997,1720765957094,-751.88,0.0001463,2]
[331800998,1720765957104,-788.87,0.0001463,2]
[331800999,1720765957114,-589.96,0.0001463,2]
[331801000,1720765957124,-1518.85,0.0001463,2]
[331801001,1720765957134,-500.0,0.0001463,2]
[331801002,1720765957143,-863.12,0.0001463,2]
[331801003,1720765957153,-500.0,0.0001463,2]
[331801004,1720765957162,-765.3,0.0001463,2]
[331801005,1720765957172,-1173.86,0.0001463,2]
[331801006,1720765957182,-500.0,0.0001463,2]
[331801007,1720765957192,-714.93,0.0001463,2]
[331801008,1720765957202,-500.0,0.0001463,2]
[331801009,1720765957212,-889.91,0.0001463,2]
[331801010,1720765957222,-500.0,0.0001463,2]
[331801011,1720765957231,-797.27,0.0001463,2]
[331801012,1720765957242,-211.52,0.0001463,2]
[331801013,1720765957252,-508.63,0.0001463,2]
[331801014,1720765957261,-500.0,0.0001463,2]
[331801015,1720765957271,-1002.89,0.0001463,2]
[331801016,1720765957280,-512.8,0.0001463,2]
[331801017,1720765957290,-500.0,0.0001463,2]
[331801018,1720765957299,-905.0,0.0001463,2]
[331801019,1720765957308,-500.0,0.0001463,2]
[331801020,1720765957318,-500.0,0.0001463,2]
[331801021,1720765957328,-504.61,0.0001463,2]
[331801022,1720765957337,-500.0,0.0001463,2]
[331801023,1720765957347,-500.0,0.0001463,2]
[331801024,1720765957357,-998.09,0.0001463,2]
[331801025,1720765957366,-1181.8,0.0001463,2]
[331801026,1720765957374,-1692.88,0.0001463,2]
[331801027,1720765957383,-806.67,0.0001463,2]
[331801028,1720765957393,-1115.55,0.0001463,2]
[331801029,1720765957403,-1111.86,0.0001463,2]
[331801030,1720765957412,-500.0,0.0001463,2]
[331801031,1720765957421,-1152.37,0.0001463,2]
[331801032,1720765957431,-500.0,0.0001463,2]
[331801033,1720765957440,-1099.21,0.0001463,2]
[331801034,1720765957450,-500.0,0.0001463,2]
[331801035,1720765957459,-958.58,0.0001463,2]
[331801036,1720765957469,-1435.54,0.0001463,2]
[331801037,1720765957478,-933.39,0.0001463,2]
[331801038,1720765957487,-885.22,0.0001463,2]
[331801039,1720765957497,-525.55,0.0001463,2]
[331801040,1720765957506,-578.47,0.0001463,2]
[331801041,1720765957516,-585.1,0.0001463,2]
[331801042,1720765957527,-768.43,0.0001463,2]
[331801043,1720765957537,-500.0,0.0001463,2]
[331801044,1720765957547,-1131.03,0.0001463,2]
[331801045,1720765957556,-500.66,0.0001463,2]
[331801046,1720765957566,-1387.16,0.0001463,2]
[331801047,1720765957575,-769.71,0.0001463,2]
[331801048,1720765957585,-929.61,0.0001463,2]
[331801049,1720765957595,-1195.55,0.0001463,2]
[331801050,1720765957604,-1164.92,0.0001463,2]
[331801051,1720765957613,-592.67,0.0001463,2]
[331801052,1720765957622,-832.05,0.0001463,2]
[331801053,1720765957707,-1157.39,0.0001463,2]
[331801054,1720765957717,-965.25,0.0001463,2]
[331801055,1720765957727,-1057.96,0.0001463,2]
[331801056,1720765957736,-500.0,0.0001463,2]
[331801057,1720765957748,-663.73,0.0001463,2]
[331801058,1720765957758,-500.0,0.0001463,2]
[331801059,1720765957767,-996.83,0.0001463,2]
[331801060,1720765957777,-778.42,0.0001463,2]
[331801061,1720765957786,-500.94,0.0001463,2]
[331801062,1720765957795,-500.0,0.0001463,2]
[331801063,1720765957805,-1011.24,0.0001463,2]
[331801064,1720765957815,-500.0,0.0001463,2]
[331801065,1720765957824,-724.27,0.0001463,2]
[331801066,1720765957833,-948.7,0.0001463,2]
[331801067,1720765957842,-1338.17,0.0001463,2]
[331801068,1720765957851,-894.67,0.0001463,2]
[331801069,1720765957860,-500.0,0.0001463,2]
[331801070,1720765957869,-691.16,0.0001463,2]
[331801071,1720765957878,-706.91,0.0001463,2]
[331801072,1720765957887,-1648.59,0.0001463,2]
[331801073,1720765957897,-579.34,0.0001463,2]
[331801074,1720765957906,-534.75,0.0001463,2]
[331801075,1720765957915,-6673.84,0.0001463,2]
[331801076,1720765957925,-791.66,0.0001463,2]
[331801077,1720765957934,-868.6,0.0001463,2]
[331801078,1720765957944,-503.87,0.0001463,2]
[331801079,1720765957953,-500.0,0.0001463,2]
[331801080,1720765957963,-1463.05,0.0001463,2]
[331801081,1720765957972,-500.0,0.0001463,2]
[331801082,1720765957983,-1711.11,0.0001463,2]
[331801083,1720765957994,-940.12,0.0001463,2]
[331801084,1720765958004,-1103.87,0.0001463,2]
[331801085,1720765958014,-838.82,0.0001463,2]
[331801086,1720765958023,-906.68,0.0001463,2]
[331801087,1720765958033,-774.99,0.0001463,2]
[331801088,1720765958043,-500.0,0.0001463,2]
[331801089,1720765958052,-1003.46,0.0001463,2]
[331801090,1720765958061,-776.49,0.0001463,2]
[331801091,1720765958070,-715.19,0.0001463,2]
[331801092,1720765958080,-811.17,0.0001463,2]
[331801093,1720765958090,-500.0,0.0001463,2]
[331801094,1720765958099,-1169.16,0.0001463,2]
[331801095,1720765958109,-2671.99,0.0001463,2]
[331801096,1720765958119,-804.64,0.0001463,2]
[331801097,1720765958128,-516.06,0.0001463,2]
[331801098,1720765958138,-1567.42,0.0001463,2]
[331801099,1720765958148,-1123.97,0.0001463,2]
[331801100,1720765958157,-1159.17,0.0001463,2]
[331801101,1720765958166,-682.47,0.0001463,2]
[331801102,1720765958175,-7796.51,0.0001463,2]
[331801103,1720765958185,-884.1,0.0001463,2]
[331801104,1720765958194,-3427.86,0.0001463,2]
[331801105,1720765958203,-761.42,0.0001463,2]
[331801106,1720765958212,-500.0,0.0001463,2]
[331801107,1720765958222,-2349.61,0.0001463,2]
[331801108,1720765958232,-2824.19,0.0001463,2]
[331801109,1720765958241,-544.06,0.0001463,2]
[331801110,1720765958256,-1413.14,0.0001463,2]
[331801111,1720765958268,-500.0,0.0001463,2]
[331801112,1720765958277,-500.0,0.0001463,2]
[331801113,1720765958287,-746.16,0.0001463,2]
[331801114,1720765958296,-568.05,0.0001463,2]
[331801115,1720765958305,-1225.06,0.0001463,2]
[331801116,1720765958314,-1040.64,0.0001463,2]
[331801117,1720765958323,-502.01,0.0001463,2]
[331801118,1720765958333,-945.48,0.0001463,2]
[331801119,1720765958343,-1864.03,0.0001463,2]
[331801120,1720765958354,-181.08354821,0.0001463,2]
[331801121,1720765958365,-3139.48,0.0001463,2]
[331801122,1720765958374,-782.62,0.0001463,2]
[331801123,1720765958383,-967.92,0.0001463,2]
[331801124,1720765958393,-817.59,0.0001463,2]
[331801125,1720765958402,-760.77,0.0001463,2]
[331801126,1720765958411,-672.02,0.0001463,2]
[331801127,1720765958421,-500.0,0.0001463,2]
[331801128,1720765958430,-1369.87,0.0001463,2]
[331801129,1720765958441,-503.52,0.0001463,2]
[331801130,1720765958450,-927.94,0.0001463,2]
[331801131,1720765958460,-510.11,0.0001463,2]
[331801132,1720765958470,-883.29,0.0001463,2]
[331801133,1720765958480,-703.12,0.0001463,2]